Cogmind - Beta 11 X6 @@@ ROGUE MODE // 2021.08.09 @ 19:54:14 Player: Olga Result: Destroyed by D-53 Grenadier with Mini Grenade Launcher Performance ------------- Evolutions (0) 0 Regions Visited (4) 800 Robots Destroyed (11) 55 Value Destroyed (229) 229 Prototype IDs (23) 460 Alien Tech Used (0) 0 Bonus (325) 325 TOTAL SCORE: 1869 Bonus ------- Follower Combat Kills 25 Aligned with FarCom 300 Cogmind --------- Core Integrity 0/250 Matter 234/300 Energy 100/100 System Corruption 0% Temperature Cool (0) Movement Rolling (100) Location -9/Mines Parts ------- > --- POWER (1) -------- (None) > --- PROPULSION (2) --- Compact Wheel > --- UTILITY (2) ------ Small Storage Unit Core Shielding > --- WEAPON (2) ------- (None) > --- INVENTORY (8) ---- Light Ion Engine Medium Storage Unit 0b10 Alert Chip Heavy Assault Rifle Heavy Assault Rifle Mining Laser Peak State ------------ > --- POWER ------------ Ion Engine > --- PROPULSION ------- Aluminum Leg Aluminum Leg > --- UTILITY ---------- Small Storage Unit Shield Generator > --- WEAPON ----------- Heavy Assault Rifle Heavy Assault Rifle > --- INVENTORY -------- Light Ion Engine Light Ion Engine Compact Wheel Compact Wheel Medium Storage Unit Utility Shielding Heavy Assault Rifle Heavy Assault Rifle [Rating: 11] Favorites ----------- Power Ion Engine Engine Ion Engine Propulsion Aluminum Leg Leg Aluminum Leg Wheel Compact Wheel Utility Small Storage Unit Device Shield Generator Storage Small Storage Unit Protection Core Shielding Weapon Heavy Assault Rifle Ballistic Gun Heavy Assault Rifle Build | -11 -10 -10 -10 -9 ------- Run | Scr Mat Min Exi Min Slots Evolved . | . . . . . Power . | . . . . . Propulsion . | . . . . . Utility . | . . . . . Weapon . | . . . . . Parts Attached 8 | . 5 . . 3 Power . | . . . . . Engine . | . . . . . Core . | . . . . . Reactor . | . . . . . Propulsion 2 | . . . . 2 Treads . | . . . . . Leg . | . . . . . Wheel 2 | . . . . 2 Hover . | . . . . . Flight . | . . . . . Utility 4 | . 3 . . 1 Device 1 | . 1 . . . Storage 2 | . 2 . . . Processor . | . . . . . Hackware . | . . . . . Protection 1 | . . . . 1 Artifact . | . . . . . Weapon 2 | . 2 . . . Energy Gun . | . . . . . Energy Cannon . | . . . . . Ballistic Gun 2 | . 2 . . . Ballistic Cannon . | . . . . . Launcher . | . . . . . Special Weapon . | . . . . . Impact Weapon . | . . . . . Slashing Weapon . | . . . . . Piercing Weapon . | . . . . . Special Melee Weapon . | . . . . . Unidentified Prototypes . | . . . . . Parts Lost 7 | . . . . 7 Power 1 | . . . . 1 Propulsion 3 | . . . . 3 Utility 1 | . . . . 1 Weapon 2 | . . . . 2 Highest Loss Streak 6 | . . . . 6 Average Slot Usage (%) 96 | . 96 100 100 92 Engine 13 | . 14 14 14 12 Leg 27 | . 28 28 28 26 Device 10 | . 10 14 14 6 Storage 14 | . 14 14 14 14 Protection 1 | . . . . 4 Ballistic Gun 27 | . 28 28 28 26 Naked Turns . | . . . . . Heaviest Build 18 | 14 18 18 18 18 Greatest Support 32 | 20 20 20 20 32 Greatest Overweight (x) . | . . . . . Average Overweight (x) . | . . . . . Largest Inventory Capacity 10 | . 10 8 8 8 Average Capacity 8 | . 8 8 8 8 Most Carried 8 | . 8 8 8 8 Average Carried 7 | . 7 8 7 7 Final Capacity 8 | 8 8 8 8 8 Final Carried 8 | 6 8 8 8 6 Class Distribution -------------------- 100% | Mutant Dominant Class ---------------- Mutant | -10/Materials Mutant | -10/Mines Mutant | -10/Exiles Mutant | -9/Mines Resources | -11 -10 -10 -10 -9 ----------- Run | Scr Mat Min Exi Min Matter Collected 383 | 174 50 . . 159 Remotely . | . . . . . Salvage Created 277 | . 97 . . 180 Parts 18 | . 12 . . 6 Haulers Intercepted . | . . . . . Recyclers Shooed . | . . . . . Parts Field Recycled . | . . . . . Retrieved Matter . | . . . . . Parts Self-Destructed . | . . . . . Prevented . | . . . . . Kills | -11 -10 -10 -10 -9 ------- Run | Scr Mat Min Exi Min Combat Hostiles Destroyed 11 | . 6 . . 5 Guns 11 | . 6 . . 5 Classes Destroyed 3 | . 1 . . 2 Swarmer 7 | . 6 . . 1 Grunt 3 | . . . . 3 Duelist 1 | . . . . 1 Best Kill Streak 6 | . 6 . . 4 Combat Bots Only 6 | . 6 . . 4 Max Kills in Single Turn 2 | . 2 . . 2 Gunslinging 1 | . . . . 1 Exploded . | . . . . . Melee . | . . . . . Uniques/NPCs Destroyed . | . . . . . Combat | -11 -10 -10 -10 -9 -------- Run | Scr Mat Min Exi Min Damage Taken 987 | . 136 . . 851 Core 262 | . 28 . . 234 Absorbed by Shields 144 | . 55 . . 89 Core Remaining (%) 100 | 100 . . . . Volleys Fired 34 | . 14 . . 20 Largest 2 | . 2 . . 2 Hottest 46 | . 46 . . 46 Shots Fired 68 | . 28 . . 40 Gun 68 | . 28 . . 40 Cannon . | . . . . . Launcher . | . . . . . Special . | . . . . . Kinetic 68 | . 28 . . 40 Thermal . | . . . . . Explosive . | . . . . . Electromagnetic . | . . . . . Robot Hit Streak 10 | . 3 . . 10 Robot Miss Streak 6 | . 3 . . 6 Penetration Max . | . . . . . Secondary Targets 1 | . . . . 1 Max Gunslinging Chain 1 | . . . . 1 Shots Hit Robots 42 | . 16 . . 26 Core Hits 14 | . 6 . . 8 Critical Kills . | . . . . . Critical Parts Destroyed . | . . . . . Critical Strikes . | . . . . . Melee Attacks . | . . . . . Impact . | . . . . . Slashing . | . . . . . Piercing . | . . . . . Sneak Attacks . | . . . . . Combat Hostiles . | . . . . . Follow-up Attacks . | . . . . . Damage Inflicted 644 | . 250 . . 394 Guns 644 | . 250 . . 394 Cannons . | . . . . . Explosions . | . . . . . Melee . | . . . . . Ramming . | . . . . . Kinetic 644 | . 250 . . 394 Thermal . | . . . . . Explosive . | . . . . . Electromagnetic . | . . . . . Impact . | . . . . . Slashing . | . . . . . Piercing . | . . . . . Highest Corruption . | . . . . . Average Corruption . | . . . . . Corruption Purged . | . . . . . Overload Shots . | . . . . . Overflow Damage . | . . . . . Projectiles . | . . . . . Explosions . | . . . . . Melee . | . . . . . Knockbacks . | . . . . . Impact . | . . . . . Kinetic . | . . . . . Secondary . | . . . . . Self-Inflicted Damage . | . . . . . Shots . | . . . . . Rammed . | . . . . . Targets Rammed . | . . . . . Kicked . | . . . . . Crushed . | . . . . . Highest Temperature 1 | . . . . 1 Average Temperature 1 | . . . . 1 Received Heat Transfer 138 | . . . . 138 Siege Activations . | . . . . . Robots Corrupted . | . . . . . Combat Hostiles . | . . . . . Parts Fried . | . . . . . Impact Corruptions . | . . . . . Robots Melted . | . . . . . Combat Hostiles . | . . . . . Parts Melted . | . . . . . Heat Transferred . | . . . . . Parts Sabotaged . | . . . . . Parts Stolen . | . . . . . Parts Stripped . | . . . . . Power Chain Reactions . | . . . . . Missiles Intercepted . | . . . . . Alert | -11 -10 -10 -10 -9 ------- Run | Scr Mat Min Exi Min Peak Influence 155 | . 155 60 . 110 Initial 60 | . . 60 . . Average 56 | . 57 60 . 53 Maximum Alert Level . | . . . . . Low Security (%) 100 | . 100 100 . 100 Level 1 . | . . . . . Level 2 . | . . . . . Level 3 . | . . . . . Level 4 . | . . . . . Level 5 . | . . . . . High Security . | . . . . . Max Security . | . . . . . Squads Dispatched 2 | . 1 . . 1 Investigation 2 | . 1 . . 1 Extermination . | . . . . . Reinforcement . | . . . . . Assault . | . . . . . Garrison . | . . . . . Intercept . | . . . . . Construction Impeded . | . . . . . Haulers Reinforced . | . . . . . Active Scanning Responses . | . . . . . Cargo Convoy Interrupts . | . . . . . Stealth | -11 -10 -10 -10 -9 --------- Run | Scr Mat Min Exi Min Distress Signals . | . . . . . Communications Jammed . | . . . . . Distress Signals . | . . . . . Times Spotted 19 | . 9 . . 10 Peak Tracking Total 6 | . 6 . . 5 Tactical Retreats . | . . . . . Traps | -11 -10 -10 -10 -9 ------- Run | Scr Mat Min Exi Min Traps Triggered . | . . . . . Indirectly . | . . . . . Trap Hack Attempts . | . . . . . Triggered . | . . . . . Disarmed . | . . . . . Reprogrammed . | . . . . . Reused . | . . . . . Traps Extracted . | . . . . . Installed . | . . . . . Triggered . | . . . . . Machines | -11 -10 -10 -10 -9 ---------- Run | Scr Mat Min Exi Min Machines Disabled 1 | . . . . 1 Max in Single Turn . | . . . . . Machines Sabotaged . | . . . . . Garrisons Compromised . | . . . . . Overloaded Fab Kills . | . . . . . Fab Network Shutdowns . | . . . . . Hacking | -11 -10 -10 -10 -9 --------- Run | Scr Mat Min Exi Min Machines Accessed 4 | . 2 . 1 1 Terminals 3 | . 2 . . 1 Fabricators . | . . . . . Repair Stations . | . . . . . Recycling Units . | . . . . . Scanalyzers . | . . . . . Garrison Access . | . . . . . Total Hacks 11 | . 6 . 1 4 Successful 2 | . . . 1 1 Failed 9 | . 6 . . 3 Catastrophic 2 | . 2 . . . Database Lockouts . | . . . . . Manual 9 | . 6 . 1 2 Terminals 10 | . 6 . . 4 Fabricators . | . . . . . Repair Stations . | . . . . . Recycling Units . | . . . . . Scanalyzers . | . . . . . Garrison Access . | . . . . . Terminal Hacks 2 | . . . 1 1 Zone Layout 1 | . . . . 1 EX-Prototype ID Bank 1 | . . . 1 . Fabricator Hacks . | . . . . . Repair Station Hacks . | . . . . . Recycling Unit Hacks . | . . . . . Scanalyzer . | . . . . . Garrison Access Hacks . | . . . . . Unauthorized Hacks . | . . . . . Terminals . | . . . . . Fabricators . | . . . . . Repair Stations . | . . . . . Recycling Units . | . . . . . Scanalyzers . | . . . . . Garrison Access . | . . . . . Data Cores Recovered . | . . . . . Used . | . . . . . Hacking Detections 3 | . 2 . . 1 Full Trace Events 3 | . 2 . . 1 Feedback Events . | . . . . . Feedback Blocked . | . . . . . Robot Schematics Acquired . | . . . . . Robots Built . | . . . . . Matter . | . . . . . Time . | . . . . . Total Robot Build Rating . | . . . . . Part Schematics Acquired . | . . . . . Parts Built . | . . . . . Matter . | . . . . . Time . | . . . . . Total Part Build Rating . | . . . . . Parts Repaired . | . . . . . Time . | . . . . . Parts Recycled . | . . . . . Recycled Matter . | . . . . . Retrieved Matter . | . . . . . Retrieved Components . | . . . . . Parts Scanalyzed . | . . . . . Part Schematics Acquired . | . . . . . Parts Damaged . | . . . . . Bothacking | -11 -10 -10 -10 -9 ------------ Run | Scr Mat Min Exi Min Used RIF Installer . | . . . . . Robots Hacked . | . . . . . Non-combat . | . . . . . Combat . | . . . . . Robot Hacks Applied . | . . . . . Relay Couplers Released . | . . . . . Robots Rewired . | . . . . . Allies Hacked . | . . . . . Hacks Repelled . | . . . . . Allies | -11 -10 -10 -10 -9 -------- Run | Scr Mat Min Exi Min Total Allies 3 | . . 3 . . Largest Group 3 | . . 3 3 3 Highest-Rated Group 40 | . . 40 40 40 Highest-Rated Ally 16 | . . 16 16 16 Total Orders . | . . . . . Ally Attacks 17 | . . . . 17 Total Damage 174 | . . . . 174 Kills 1 | . . . . 1 Allies Corrupted . | . . . . . Allies Melted . | . . . . . Intel | -11 -10 -10 -10 -9 ------- Run | Scr Mat Min Exi Min Robot Analysis Total . | . . . . . Derelict Logs Recovered . | . . . . . Drone Launches . | . . . . . Drone Recoveries . | . . . . . Exploration | -11 -10 -10 -10 -9 ------------- Run | Scr Mat Min Exi Min Turns Passed 829 | . 302 40 264 223 Spaces Moved 586 | 1 204 32 217 132 Core . | . . . . . Treads . | . . . . . Legs 578 | 1 204 32 217 124 Wheels 8 | . . . . 8 Hover . | . . . . . Flight . | . . . . . Fastest Speed 100 | 120 120 120 120 100 Average Speed 119 | 120 120 120 120 118 Slowest Speed 120 | 120 120 120 120 120 Overloaded Moves . | . . . . . Propulsion Burnouts . | . . . . . Robots Hopped . | . . . . . Cave-ins Triggered . | . . . . . Exploration Rate (%) 30 | 2 46 10 62 32 Regions Visited 4 Branch Regions 3 Pre-discovered Areas . | . . . . . Known Exits Taken . | . . . . . Unknown Exits Taken 4 | 1 1 1 1 . Scrap Searched . | . . . . . Spaces Dug . | . . . . . Terrain Destroyed . | . . . . . Melee . | . . . . . Projectile . | . . . . . AOE . | . . . . . Terrain Rammed . | . . . . . Walls Destroyed . | . . . . . Machines Disabled . | . . . . . Actions | -11 -10 -10 -10 -9 --------- Run | Scr Mat Min Exi Min Total 645 | . 234 33 221 157 Wait 7 | . . 2 3 2 Move 582 | . 203 31 216 132 Hop . | . . . . . Pick Up 7 | . 6 . 1 . Fast Attach 2 | . 1 . . 1 Attach 2 | . . . . 2 Detach . | . . . . . Swap 4 | . 4 . . . Drop 7 | . 6 . 1 . Fire 34 | . 14 . . 20 Melee . | . . . . . Ram . | . . . . . Kick . | . . . . . Crush . | . . . . . Escape Stasis . | . . . . . Rewire . | . . . . . Trap . | . . . . . Miscellaneous . | . . . . . Route ------- -11/Scrapyard -10/Materials -10/Mines -10/Exiles (discovered 2 exits: *Min x2) -9/Mines History --------- Turn | Location | Event 1 | -11/Scrapyard | Discovered new exit (range 0) 1 | -11/Scrapyard | Entered Materials 288 | -10/Materials | Discovered new exit (range 6) 303 | -10/Materials | Entered Mines 320 | -10/Mines | Build established: Mutant 325 | -10/Mines | Assisted by bots powering up and referring to "LRC-V3" 336 | -10/Mines | Deemed a non-threat by the Exiles lab entrance 336 | -10/Mines | Discovered new exit (range 5) 343 | -10/Mines | Entered Exiles 343 | -10/Exiles | Accompanied by 3 allies 359 | -10/Exiles | Discovered new exit (range 15) 373 | -10/Exiles | Met 8R-AWN 391 | -10/Exiles | Met EX-HEX 425 | -10/Exiles | Met EX-BIN 442 | -10/Exiles | Aligned with FarCom system 443 | -10/Exiles | Given EX-Vault access code 471 | -10/Exiles | Opened EX-Vault 480 | -10/Exiles | Found 0b10 Alert Chip 503 | -10/Exiles | Warned to stay clear of 0b10 Research branches 536 | -10/Exiles | Met EX-DEC 592 | -10/Exiles | Discovered new exit (range 11) 607 | -10/Exiles | Left Exiles lab with 0b10 Alert Chip 607 | -10/Exiles | Entered Mines 607 | -9/Mines | Accompanied by 3 allies 776 | -9/Mines | Assembled infested the area 781 | -9/Mines | Assisted by a Guerilla fighting off Assembled 816 | -9/Mines | Core integrity fell below 50% 826 | -9/Mines | Core integrity fell below 20% 830 | -9/Mines | Destroyed by D-53 Grenadier with Mini Grenade Launcher Last Messages --------------- 00776_ ALERT: Infestation in the mines, dispatching Demolisher response squad. 00781_ A derelict emerges from the shadows: "You need to get out of here! I've been tracking a group of Assembled to figure out where they're coming from, and they're closing on this area, come on!" 00813_ C-30 ARC bursts open, deploying its payload. 00813_ D-53 Grenadier unfolds itself. 00813_ Ion Engine destroyed. 00814_ The unstable cave ceiling collapses. 00818_ as-21226 destroyed. 00818_ as-09808 destroyed. 00819_ Aluminum Leg destroyed. 00820_ Hvy. Assault Rifle destroyed. 00822_ The unstable cave ceiling collapses. 00823_ U-05 Engineer lays Concrete. 00823_ Com. Wheel destroyed. 00823_ U-05 Engineer destroyed. 00824_ The unstable cave ceiling collapses. 00828_ K-01 Serf destroyed. 00830_ The unstable cave ceiling collapses. Map ----- +----------------------------------------------------+ | ?????????????????????????????????????????????????? | | ?????????????????????????????????????????????????? | | ?????????????????????????????????????????????????? | | ?????????????????????????????????????????????????? | | ?????????????????????????????????????????????????? | | ?????????????????????????????????????????????????? | | ?????????????????????????????????????????????????? | | ?????????????????????????????????????????????????? | | ?????????????????????????????????????????????????? | | ?????????????????????????????????????????????????? | | ?????????????????????????????????????????????????? | | ?????????????????????????????#???????????????????? | | ???????????????????????????? # ????????????????? | | ???????????????????????????? #??????????????? | | ???????????????????????????? ???????????????? | | ???????????????????????????? ????????????????? | | ??????????????????????????? #????????????????? | | ??????????????????????????? #????????????????? | | ??????????????????????????? ##???????????????? | | ??????????????????????????? ##??????????????? | | ???????????????????#?????? #??????????????? | | ???????????????????# ????? #??????????????? | | ???????????????##### ####? #???????????????? | | ???????????????? k ## ?????????????????? | | ???????????????????# #???????????????????? | | ???????????????????# @ #????????????????????? | | ???????????????????# #????????????????????? | | ???????????????????# % ##???????????????????? | | ??????????????????# # ##??????????????????? | | ??????????????????# #% ##?????????????????? | | ??????????????????# dd # # ##????????????????? | | ?????????????s????## #????????????????? | | ####???????????????## #????????????????? | | #####???????????## #????????????????? | | ???s???????## #????????????????? | | ## #???????????# #????????????????? | | #?# #???????????# ##????????????????? | | ??#*#???????????# ##?????????????????? | | ???#%#???????????# ##??????????????????? | | ????#=#??????????## % #???????????????????? | | ?????# #??????????# #???????????????????? | | ?????# #?????????## #??????###??????????? | | ?????# #????????## ##???## ##?????????? | | ?????# ##?####### #### #?????????? | | ######! ### ## #?????????? | | % ### #?????????? | | ### ! #?## ##????????? | | ##### ##?##% #??###### #????????? | | ??## ##???#! #???????## #????????? | | ?## #????# ##???????## ##????????? | +----------------------------------------------------+ Best States ------------- Heat Dissipation 25 Energy Generation 10 Energy Capacity 250 Matter Stores 274 Matter Capacity 300 Sight Range 16 Terrain Scan Density 10 Core Shielding 20 Evasion (%) 55 Item Schematics ----------------- None Robot Schematics ------------------ None Fabricated ------------ Nothing Alien Tech Used ----------------- None Achievements -------------- None Challenges ------------ None Game ------ Seed ArmageddonDisruptionMantle Manual? 0 Play Time 00:10:42 Cumulative 53.3 hours Start 2021.08.09 @ 19:45:41 End 2021.08.09 @ 19:54:14 Sessions 1 Manual Loads 0 Difficulty Rogue Special Mode None Game No. 62 Rogue 62 Adventurer 0 Explorer 0 Win Type - Total 0 Types 0/0/0/0/0/0/0/0/0 Lore% 46 Gallery% 41 Achievement% 35 Wizard Run 0 Options --------- ASCII 1 Keyboard 0 Movement Vi Keybinds 0 Fullscreen 2 Font 18/SmallcapsGlow Map View 76x50 Tactical HUD 1 Map Filters NONE Filters NONE Steam 1 RUN: 96b2853b-a628-41e5-bc56-e88daacee61d